fUSD/lending_fUSD_20250103
["ID","MTS","AMOUNT","RATE_DAILY","PERIOD"]
[347606605,1735945844372,-532.3,0.00012258,2]
[347606607,1735945844381,-671.24,0.00012258,2]
[347606610,1735945844391,-500.0,0.00012258,2]
[347606612,1735945844400,-500.0,0.00012258,2]
[347606614,1735945844410,-293.68,0.00012258,2]
[347606615,1735945844419,-500.0,0.00012258,2]
[347606618,1735945844429,-500.0,0.00012258,2]
[347606620,1735945844439,-796.52,0.00012258,2]
[347606621,1735945844448,-500.0,0.00012258,2]
[347606623,1735945844457,-500.0,0.00012258,2]
[347606625,1735945844466,-500.0,0.00012258,2]
[347606627,1735945844475,-1721.47,0.00012258,2]
[347606629,1735945844484,-500.0,0.00012258,2]
[347606631,1735945844493,-500.0,0.00012258,2]
[347606633,1735945844503,-739.87,0.00012258,2]
[347606635,1735945844512,-500.0,0.00012258,2]
[347606637,1735945844521,-500.0,0.00012258,2]
[347606639,1735945844531,-500.0,0.00012258,2]
[347606641,1735945844540,-500.0,0.00012258,2]
[347606643,1735945844549,-1259.16,0.00012258,2]
[347606645,1735945844559,-500.0,0.00012258,2]
[347606647,1735945844568,-494.68,0.00012259,2]
[347606649,1735945844577,-500.0,0.00012259,2]
[347606651,1735945844587,-440.54,0.00012259,2]
[347606653,1735945844596,-500.0,0.00012259,2]
[347606655,1735945844606,-500.0,0.00012259,2]
[347606657,1735945844615,-500.0,0.00012259,2]
[347606659,1735945844624,-500.0,0.00012259,2]
[347606661,1735945844634,-500.0,0.00012259,2]
[347606663,1735945844643,-500.0,0.00012259,2]
[347606665,1735945844653,-500.0,0.00012259,2]
[347606667,1735945844662,-500.0,0.00012259,2]
[347606669,1735945844671,-500.0,0.00012259,2]
[347606670,1735945844680,-500.0,0.00012259,2]
[347606671,1735945844690,-500.0,0.00012259,2]
[347606672,1735945844699,-197.71,0.00012259,2]
[347606673,1735945844708,-500.0,0.00012259,2]
[347606674,1735945844718,-500.0,0.00012259,2]
[347606675,1735945844727,-500.0,0.00012259,2]
[347606676,1735945844736,-564.56,0.00012259,2]
[347606677,1735945844746,-324.05,0.00012259,2]
[347606678,1735945844755,-503.45,0.00012259,2]
[347606679,1735945844764,-500.0,0.00012259,2]
[347606680,1735945844774,-603.71,0.00012259,2]
[347606681,1735945844783,-500.0,0.00012259,2]
[347606682,1735945844792,-500.0,0.00012259,2]
[347606683,1735945844803,-500.0,0.00012259,2]
[347606685,1735945844812,-500.0,0.00012259,2]
[347606687,1735945844821,-500.0,0.00012259,2]
[347606689,1735945844831,-233.03,0.00012259,2]
[347606691,1735945844841,-500.0,0.00012259,2]
[347606693,1735945844850,-289.23,0.00012259,2]
[347606695,1735945844859,-500.0,0.00012259,2]
[347606697,1735945844868,-500.0,0.00012259,2]
[347606699,1735945844878,-500.0,0.00012259,2]
[347606701,1735945844888,-500.0,0.00012259,2]
[347606703,1735945844897,-500.0,0.00012259,2]
[347606705,1735945844907,-500.0,0.00012259,2]
[347606707,1735945844916,-180.77,0.00012259,2]
[347606709,1735945844926,-500.0,0.00012259,2]
[347606711,1735945844935,-260.77,0.00012259,2]
[347606713,1735945844946,-500.0,0.00012259,2]
[347606715,1735945844956,-500.0,0.00012259,2]
[347606717,1735945844965,-399.14,0.00012259,2]
[347606719,1735945844974,-500.0,0.00012259,2]
[347606721,1735945844984,-500.0,0.00012259,2]
[347606723,1735945844994,-500.0,0.00012259,2]
[347606725,1735945845003,-500.0,0.00012259,2]
[347606727,1735945845013,-500.0,0.00012259,2]
[347606729,1735945845024,-500.0,0.00012259,2]
[347606731,1735945845034,-500.0,0.00012259,2]
[347606733,1735945845043,-947.99,0.00012259,2]
[347606735,1735945845052,-500.0,0.00012259,2]
[347606737,1735945845062,-500.0,0.00012259,2]
[347606739,1735945845071,-500.0,0.00012259,2]
[347606741,1735945845080,-500.0,0.00012259,2]
[347606743,1735945845091,-500.0,0.00012259,2]
[347606745,1735945845100,-500.0,0.00012259,2]
[347606747,1735945845110,-1324.88,0.00012259,2]
[347606749,1735945845119,-1358.47,0.00012259,2]
[347606751,1735945845128,-3532.73,0.00012259,2]
[347606753,1735945845139,-1506.37,0.00012259,2]
[347606755,1735945845149,-3628.84,0.00012259,2]
[347606757,1735945845158,-1621.33,0.00012259,2]
[347606759,1735945845168,-2000.51,0.00012259,2]
[347606761,1735945845177,-1092.65,0.00012259,2]
[347606763,1735945845187,-698.28,0.00012259,2]
[347606765,1735945845197,-500.0,0.00012259,2]
[347606767,1735945845206,-500.0,0.0001226,2]
[347606769,1735945845215,-615.26,0.0001226,2]
[347606771,1735945845225,-15980.36323205,0.0001226,2]
[347606773,1735945845236,-547.82,0.00012272,2]
[347606775,1735945845245,-4512.78,0.00012272,2]
[347606777,1735945845254,-500.0,0.00012272,2]
[347606779,1735945845263,-618.06,0.00012272,2]
[347606781,1735945845272,-1404.33,0.00012272,2]
[347606783,1735945845282,-1069.01,0.00012272,2]
[347606785,1735945845291,-500.0,0.00012273,2]
[347606786,1735945845300,-500.0,0.00012273,2]
[347606789,1735945845310,-500.0,0.00012273,2]
[347606791,1735945845322,-500.0,0.00012273,2]
[347606793,1735945845331,-500.0,0.00012273,2]
[347606795,1735945845341,-500.0,0.00012273,2]
[347606797,1735945845350,-500.0,0.00012273,2]
[347606799,1735945845359,-500.0,0.00012273,2]
[347606801,1735945845368,-358.47,0.00012273,2]
[347606802,1735945845378,-503.44415425,0.00012273,2]
[347606805,1735945845389,-419.42,0.00012273,2]
[347606806,1735945845397,-500.0,0.00012273,2]
[347606808,1735945845407,-500.0,0.00012273,2]
[347606810,1735945845416,-500.0,0.00012273,2]
[347606812,1735945845426,-506.34,0.00012273,2]
[347606814,1735945845435,-500.0,0.00012273,2]
[347606817,1735945845445,-500.0,0.00012273,2]
[347606819,1735945845455,-500.0,0.00012273,2]
[347606821,1735945845464,-500.0,0.00012273,2]
[347606823,1735945845473,-550.07,0.00012273,2]
[347606825,1735945845482,-500.0,0.00012273,2]
[347606827,1735945845492,-473.34,0.00012273,2]
[347606829,1735945845501,-500.0,0.00012273,2]
[347606831,1735945845510,-207.41,0.00012273,2]
[347606833,1735945845520,-500.0,0.00012273,2]
[347606835,1735945845529,-194.18,0.00012273,2]
[347606837,1735945845539,-500.0,0.00012273,2]
[347606839,1735945845548,-500.0,0.00012273,2]
[347606840,1735945845558,-500.0,0.00012273,2]
[347606842,1735945845568,-605.51,0.00012273,2]
[347606845,1735945845578,-500.0,0.00012273,2]
[347606847,1735945845587,-500.0,0.00012273,2]
[347606849,1735945845597,-424.73,0.00012273,2]
[347606851,1735945845606,-500.0,0.00012273,2]
[347606853,1735945845616,-443.92,0.00012273,2]
[347606855,1735945845626,-434.58,0.00012273,2]
[347606857,1735945845639,-500.0,0.00012273,2]
[347606859,1735945845648,-500.0,0.00012273,2]
[347606861,1735945845658,-453.34,0.00012273,2]
[347606863,1735945845667,-500.0,0.00012273,2]
[347606865,1735945845677,-500.0,0.00012273,2]
[347606867,1735945845686,-500.0,0.00012273,2]
[347606869,1735945845695,-500.0,0.00012273,2]
[347606871,1735945845705,-434.30186966,0.00012273,2]
[347606873,1735945845714,-500.0,0.00012273,2]
[347606875,1735945845724,-500.0,0.00012273,2]
[347606877,1735945845733,-500.0,0.00012273,2]
[347606879,1735945845742,-500.0,0.00012273,2]
[347606881,1735945845751,-569.12,0.00012273,2]
[347606883,1735945845760,-607.53,0.00012273,2]
[347606885,1735945845769,-537.01,0.00012273,2]
[347606886,1735945845779,-500.0,0.00012273,2]
[347606888,1735945845788,-500.0,0.00012273,2]
[347606891,1735945845798,-500.0,0.00012273,2]
[347606892,1735945845808,-599.1,0.00012273,2]
[347606894,1735945845817,-500.0,0.00012273,2]
[347606896,1735945845827,-500.0,0.00012273,2]
[347606899,1735945845837,-500.0,0.00012273,2]
[347606901,1735945845847,-500.0,0.00012273,2]
[347606903,1735945845857,-500.0,0.00012273,2]
[347606905,1735945845866,-500.0,0.00012273,2]
[347606906,1735945845875,-190.42,0.00012273,2]
[347606910,1735945845886,-500.0,0.00012273,2]
[347606913,1735945845895,-500.0,0.00012273,2]
[347606915,1735945845905,-500.0,0.00012273,2]
[347606917,1735945845915,-500.0,0.00012273,2]
[347606919,1735945845924,-903.64,0.00012273,2]
[347606921,1735945845933,-500.0,0.00012273,2]
[347606923,1735945845945,-306.92,0.00012273,2]
[347606925,1735945845955,-184.57,0.00012273,2]
[347606927,1735945845965,-500.0,0.00012273,2]
[347606929,1735945845974,-616.27,0.00012273,2]
[347606931,1735945845984,-500.0,0.00012273,2]
[347606932,1735945845994,-500.0,0.00012273,2]
[347606934,1735945846003,-504.94,0.00012273,2]
[347606952,1735945846162,-3151.91,0.00012273,2]
[347606954,1735945846173,-1358.19,0.00012273,2]
[347606956,1735945846183,-500.0,0.00012273,2]
[347606958,1735945846192,-500.0,0.00012273,2]
[347606961,1735945846203,-500.0,0.00012273,2]
[347606962,1735945846212,-500.0,0.00012273,2]
[347606964,1735945846222,-765.08,0.00012273,2]
[347606967,1735945846232,-500.0,0.00012273,2]
[347606969,1735945846243,-500.0,0.00012273,2]
[347606970,1735945846252,-500.0,0.00012273,2]
[347606973,1735945846262,-2080.53,0.00012273,2]
[347606975,1735945846272,-164.39,0.00012273,2]
[347606977,1735945846281,-398.14,0.00012273,2]
[347606979,1735945846290,-500.0,0.00012273,2]
[347606981,1735945846300,-500.0,0.00012273,2]
[347606983,1735945846310,-500.0,0.00012273,2]
[347606985,1735945846320,-500.0,0.00012273,2]
[347606987,1735945846329,-603.66,0.00012273,2]
[347606989,1735945846339,-500.0,0.00012273,2]
[347606990,1735945846348,-500.0,0.00012273,2]
[347606992,1735945846357,-500.0,0.00012273,2]
[347606994,1735945846366,-180.71,0.00012273,2]
[347606996,1735945846376,-610.03,0.00012273,2]
[347606998,1735945846385,-500.0,0.00012273,2]
[347607000,1735945846395,-500.0,0.00012273,2]
[347607002,1735945846405,-500.0,0.00012273,2]
[347607005,1735945846415,-500.0,0.00012273,2]
[347607007,1735945846426,-500.0,0.00012273,2]
[347607009,1735945846435,-554.76,0.00012273,2]
[347607011,1735945846445,-460.52,0.00012273,2]
[347607013,1735945846455,-533.22,0.00012273,2]
[347607015,1735945846464,-500.0,0.00012273,2]
[347607016,1735945846473,-500.0,0.00012273,2]
[347607018,1735945846483,-500.0,0.00012273,2]
[347607020,1735945846492,-265.69566257,0.00012274,2]
[347607022,1735945846502,-157.86872034,0.00012274,2]
[347607024,1735945846511,-5009.86444507,0.0001229,6]
[347607026,1735945846521,-7493.6283642,0.00012292,2]
[347607029,1735945846530,-1069.3867555,0.00012292,2]
[347607030,1735945846539,-1609.3050111,0.00012292,2]
[347607032,1735945846549,-3397.0532601,0.00012292,2]
[347607034,1735945846559,-1647.1063463,0.00012292,2]
[347607036,1735945846568,-244.5972788,0.00012292,2]
[347607039,1735945846578,-2874.45,0.00012297,2]
[347607041,1735945846587,-1982.63,0.00012297,2]
[347607042,1735945846596,-779.69,0.00012297,2]
[347607045,1735945846606,-599.64,0.00012297,2]
[347607046,1735945846616,-633.78,0.00012297,2]
[347607049,1735945846625,-500.0,0.00012297,2]
[347607051,1735945846635,-500.0,0.00012297,2]
[347607052,1735945846643,-500.0,0.00012297,2]
[347607055,1735945846653,-500.0,0.00012297,2]
[347607056,1735945846663,-519.3,0.00012297,2]
[347607058,1735945846672,-1547.86,0.00012297,2]
[347607060,1735945846682,-1286.34,0.00012297,2]
[347607062,1735945846692,-2981.75,0.00012297,2]
[347607064,1735945846701,-8825.61,0.00012297,2]
[347607067,1735945846710,-73186.2002893,0.00012298,2]
[347607069,1735945846720,-2000.0,0.00012298,2]
[347607071,1735945846730,-200.0,0.00012298,2]
[347607072,1735945846739,-4004.78796784,0.00012298,2]
[347607076,1735945846758,-385.28902785,0.00012298,2]
[347607078,1735945846769,-6151.53885659,0.00012298,2]
[347607088,1735945846859,-507.16,0.00011984,2]
[347607090,1735945846869,-20.31724024,0.00012298,2]
[347607092,1735945846878,-698.8727502,0.00012298,2]
[347607095,1735945846890,-380.62401225,0.00012298,2]
[347607134,1735945847273,-560.67,0.00011998,2]
[347607136,1735945847283,-1981.0,0.000121,2]
[347607138,1735945847292,-920.50323755,0.00012298,2]
[347607140,1735945847301,-200.0,0.00012298,2]
[347607142,1735945847311,-877.82676245,0.00012298,2]
[347607144,1735945847323,-954.75535292,0.00012298,2]
[347607149,1735945847359,-271.92848716,0.00012298,2]
[347607155,1735945847412,-749.60127,0.00012298,2]
[347607158,1735945847424,-1844.110716,0.00012298,2]
[347607186,1735945847771,-301.77741147,0.00012298,2]
[347607187,1735945847781,-2000.0,0.00012298,2]
[347607188,1735945847791,-200.0,0.00012298,2]
[347607189,1735945847800,-3000.0,0.00012298,2]
[347607190,1735945847809,-10134.20911688,0.00012298,2]
[347607192,1735945847823,-2000.0,0.00012298,2]
[347607194,1735945847833,-200.0,0.00012298,2]
[347607196,1735945847842,-1000.0,0.00012299,2]
[347607198,1735945847851,-1114.08161822,0.00012299,3]
[347607200,1735945847861,-150.0,0.00012299,2]
[347607202,1735945847870,-233.91019,0.00012299,2]
[347607204,1735945847880,-500.0,0.00012299,2]
[347607206,1735945847890,-500.0,0.00012299,2]
[347607208,1735945847899,-500.0,0.00012299,2]
[347607210,1735945847909,-2077.36,0.00012299,2]
[347607212,1735945847918,-722.67,0.00012299,2]
[347607214,1735945847928,-500.0,0.00012299,2]
[347607216,1735945847938,-500.0,0.00012299,2]
[347607218,1735945847952,-513.11,0.00012299,2]
[347607220,1735945847965,-500.0,0.00012299,2]
[347607222,1735945847975,-7500.0,0.00012299,2]
[347607224,1735945847986,-7500.0,0.00012299,2]
[347607226,1735945847995,-7500.0,0.00012299,2]
[347607228,1735945848005,-7500.0,0.00012299,2]
[347607230,1735945848015,-4400.63875044,0.00012299,2]
[347607232,1735945848024,-452.84,0.00012299,2]
[347607234,1735945848034,-500.0,0.00012299,2]
[347607236,1735945848043,-712.27,0.00012299,2]
[347607238,1735945848053,-1355.09,0.00012299,2]
[347607240,1735945848063,-1423.65,0.00012299,2]
[347607242,1735945848072,-936.82,0.00012299,2]
[347607244,1735945848081,-3589.57,0.00012299,2]
[347607246,1735945848091,-1853.7,0.00012299,2]
[347607248,1735945848101,-8291.16,0.00012299,2]
[347607250,1735945848110,-5646.25,0.00012299,2]
[347607252,1735945848119,-500.0,0.00012299,2]
[347607254,1735945848130,-2104.97,0.00012299,2]
[347607256,1735945848140,-4682.97,0.00012299,2]
[347607258,1735945848149,-12385.90295284,0.00012299,2]
[347607261,1735945848163,-18481.98005027,0.00012299,2]
[347607263,1735945848173,-35682.91570502,0.00012299,2]
[347607265,1735945848184,-3999.42611812,0.00012299,2]
[347607625,1735946315760,500.0,0.0002,120]
[347607635,1735946709165,157.0,0.00012299,30]
[347607636,1735946709719,157.0,0.0001281,30]
[347607642,1735946948138,-183.30517213,8.63e-05,2]
[347607649,1735947032156,-211.27482787,8.63e-05,2]
[347607650,1735947032165,-161.21,0.00010137,2]
[347607651,1735947032175,-250.0,0.0001052,2]
[347607652,1735947032184,-532.78511771,0.00010576,2]
[347607655,1735947032228,-467.21488229,0.00010576,2]
[347607656,1735947032237,-384.93634438,0.00010704,2]
[347607657,1735947032312,-21537.87778146,0.00010704,2]
[347607658,1735947032323,-988.3344858,0.00010704,2]
[347607659,1735947032334,-920.52138836,0.00010704,2]
[347607660,1735947032344,-201.17,0.00010704,2]
[347607661,1735947032354,-236.96820196,0.00010793,2]
[347607662,1735947032364,-394.58,0.00010893,2]
[347607663,1735947032374,-500.0,0.000109,3]
[347607664,1735947032383,-236.96820196,0.00010933,2]
[347607665,1735947032395,-150.0,0.00010959,2]
[347607666,1735947032405,-400.0,0.00010986,2]
[347607667,1735947032415,-1441.92,0.00010986,2]
[347607668,1735947032424,-3370.28886699,0.00010986,2]
[347607669,1735947032435,-4046.72113301,0.00010986,2]
[347607670,1735947032444,-446.05840089,0.00011,4]
[347607671,1735947032455,-653.94159911,0.00011,4]
[347607672,1735947032661,-236.96820196,0.00011073,2]
[347607673,1735947032671,-94.13615172,0.00011073,2]
[347607674,1735947032715,-176.33550609,0.00011073,2]
[347607675,1735947032724,-103.36106667,0.000111,4]
[347607676,1735947032735,-1075.43,0.000111,4]
[347607677,1735947035581,-521.20893333,0.000111,4]
[347607678,1735947035591,-155.47,0.00011123,2]
[347607679,1735947035601,-299.99,0.00011123,2]
[347607680,1735947035610,-886.47057131,0.00011123,2]
[347607681,1735947035725,-761.54733521,0.00011123,2]
[347607682,1735947035736,-896.69209348,0.00011123,2]
[347607683,1735947035746,-999.99,0.00011123,2]
[347607684,1735947035754,-68.98918652,0.00011123,2]
[347607685,1735947035766,-1241.78081348,0.00011123,2]
[347607686,1735947035775,-2362.93966298,0.00011123,2]
[347607688,1735947038106,-829.81033702,0.00011123,2]
[347607689,1735947038115,-477.59,0.00011123,2]
[347607690,1735947038126,-808.67,0.00011123,2]
[347607691,1735947038135,-291.7,0.00011123,2]
[347607692,1735947038146,-150.99,0.00011123,2]
[347607693,1735947038155,-1873.5,0.00011123,2]
[347607694,1735947038165,-3592.47,0.00011123,2]
[347607695,1735947038174,-2989.69,0.00011123,2]
[347607696,1735947038183,-1511.27,0.00011123,2]
[347607697,1735947038194,-9999.99,0.00011123,2]
[347607698,1735947038205,-128131.25,0.00011123,2]
[347607699,1735947038215,-270.47165777,0.00011132,2]
[347607700,1735947038224,-167.08,0.00011173,2]
[347607701,1735947038233,-270.47165777,0.00011192,2]
[347607702,1735947038242,-2300.0,0.000112,4]
[347607703,1735947038251,-9559.0,0.00011233,2]
[347607704,1735947038261,-270.47165777,0.00011251,2]
[347607705,1735947038271,-2900.0,0.000113,4]
[347607706,1735947038281,-270.47165777,0.0001131,2]
[347607707,1735947038291,-437.13,0.00011342,2]
[347607708,1735947038301,-725.45,0.00011342,2]
[347607710,1735947038310,-1588.66,0.00011342,2]
[347607711,1735947038320,-437.61,0.00011342,2]
[347607713,1735947038330,-437.61,0.00011342,2]
[347607715,1735947038339,-437.61,0.00011342,2]
[347607717,1735947038348,-437.61,0.00011342,2]
[347607719,1735947038358,-275.61,0.00011342,2]
[347607721,1735947038367,-270.47165777,0.0001137,2]
[347607723,1735947038376,-200.0,0.00011375,2]
[347607725,1735947038385,-500.0,0.000114,4]
[347607727,1735947038397,-270.47165777,0.00011429,2]
[347607730,1735947038408,-437.61,0.00011441,2]
[347607732,1735947038418,-771.63,0.00011441,2]
[347607734,1735947038428,-437.61,0.00011441,2]
[347607736,1735947038439,-771.63,0.00011441,2]
[347607737,1735947038448,-437.61,0.00011441,2]
[347607740,1735947038458,-771.63,0.00011441,2]
[347607741,1735947038469,-182.83,0.00011479,2]
[347607743,1735947038478,-236.12,0.00011479,2]
[347607745,1735947038487,-150.0,0.00011479,2]
[347607747,1735947038497,-300.0,0.00011479,2]
[347607749,1735947038507,-150.47,0.00011479,2]
[347607751,1735947038516,-150.0,0.00011479,2]
[347607753,1735947038526,-1560.88,0.00011479,2]
[347607755,1735947038536,-150.0,0.00011479,2]
[347607757,1735947038546,-150.0,0.00011479,2]
[347607759,1735947038556,-182.83,0.00011479,2]
[347607761,1735947038565,-150.0,0.00011479,2]
[347607763,1735947038575,-150.0,0.00011479,2]
[347607765,1735947038584,-150.0,0.00011479,2]
[347607767,1735947038593,-182.71,0.00011479,2]
[347607769,1735947038603,-150.0,0.00011479,2]
[347607771,1735947038612,-150.0,0.00011479,2]
[347607773,1735947038621,-150.0,0.00011479,2]
[347607775,1735947038632,-150.0,0.00011479,2]
[347607777,1735947038641,-150.0,0.00011479,2]
[347607779,1735947038650,-150.0,0.00011479,2]
[347607781,1735947038660,-152.33,0.00011479,2]
[347607783,1735947038669,-150.0,0.00011479,2]
[347607785,1735947038679,-315.0763,0.00011495,2]
[347607787,1735947038688,-500.0,0.000115,4]
[347607789,1735947038698,-2647.0,0.00011507,2]
[347607791,1735947038707,-2429.63060398,0.00011594,2]
[347607793,1735947038716,-500.0,0.000116,4]
[347607795,1735947038726,-3780.86182331,0.00011607,2]
[347607797,1735947038735,-291.016,0.0001168,2]
[347607799,1735947038744,-500.0,0.000117,4]
[347607801,1735947038753,-500.0,0.00011798,2]
[347607803,1735947038762,-579.45,0.00011798,2]
[347607805,1735947038771,-500.0,0.00011798,2]
[347607807,1735947038780,-500.0,0.00011798,2]
[347607809,1735947038789,-500.0,0.00011798,2]
[347607810,1735947038798,-500.0,0.00011798,2]
[347607813,1735947038808,-500.0,0.00011798,2]
[347607814,1735947038817,-500.0,0.00011798,2]
[347607817,1735947038829,-538.1,0.00011798,2]
[347607819,1735947038838,-500.0,0.00011798,2]
[347607821,1735947038847,-500.0,0.00011798,2]
[347607823,1735947038856,-500.0,0.00011798,2]
[347607825,1735947038865,-500.0,0.00011798,2]
[347607826,1735947038874,-500.0,0.00011798,2]
[347607828,1735947038883,-500.0,0.00011798,2]
[347607830,1735947038892,-359.20243197,0.00011798,2]
[347607836,1735947038930,-140.79756803,0.00011798,2]
[347607838,1735947038940,-500.0,0.00011798,2]
[347607839,1735947038949,-500.0,0.00011798,2]
[347607842,1735947038958,-313.52497547,0.00011798,2]
[347607844,1735947038969,-186.47502453,0.00011798,2]
[347607846,1735947038979,-500.0,0.00011798,2]
[347607848,1735947038988,-229.86497547,0.00011798,2]
[347607850,1735947039000,-270.13502453,0.00011798,2]
[347607852,1735947039009,-82.3352975,0.00011799,2]
[347607856,1735947039036,-303.7012187,0.00011799,2]
[347607859,1735947039054,-1802.36640994,0.00011799,2]
[347607861,1735947039065,-1036.36,0.00011799,2]
[347607863,1735947039076,-1775.23707386,0.00011799,2]
[347607865,1735947039086,-1300.0,0.000118,4]
[347607867,1735947039095,-1000.0,0.00011898,2]
[347607869,1735947039104,-500.0,0.00011898,2]
[347607871,1735947039114,-1289.89,0.00011898,2]
[347607873,1735947039123,-500.0,0.00011898,2]
[347607875,1735947039132,-1029.46,0.00011898,2]
[347607877,1735947039141,-4084.87,0.00011898,2]
[347607879,1735947039150,-500.0,0.00011898,2]
[347607881,1735947039160,-500.0,0.00011898,2]
[347607883,1735947039169,-669.19,0.00011898,2]
[347607885,1735947039178,-500.0,0.00011898,2]
[347607887,1735947039187,-1173.61,0.00011898,2]
[347607889,1735947039196,-500.0,0.00011898,2]
[347607891,1735947039207,-1382.5,0.00011898,2]
[347607893,1735947039216,-1209.38,0.00011898,2]
[347607895,1735947039225,-2429.39,0.00011898,2]
[347607897,1735947039234,-527.67,0.00011898,2]
[347607899,1735947039244,-1188.5,0.00011898,2]
[347607901,1735947039253,-500.0,0.00011898,2]
[347607903,1735947039262,-500.0,0.00011898,2]
[347607905,1735947039271,-1361.78,0.00011898,2]
[347607928,1735947039280,-109.28820524,0.00011898,2]
[347607931,1735947039499,-390.71179476,0.00011898,2]
[347607933,1735947039509,-800.02,0.00011898,2]
[347607935,1735947039519,-577.73,0.00011898,2]
[347607937,1735947039528,-500.0,0.00011898,2]
[347607939,1735947039537,-500.0,0.00011898,2]
[347607941,1735947039546,-500.0,0.00011898,2]
[347607943,1735947039556,-802.87,0.00011898,2]
[347607945,1735947039565,-500.0,0.00011898,2]
[347607947,1735947039574,-852.18,0.00011898,2]
[347607948,1735947039583,-500.0,0.00011899,2]
[347607949,1735947039593,-500.0,0.00011899,2]
[347607950,1735947039602,-500.0,0.00011899,2]
[347607951,1735947039611,-500.0,0.00011899,2]
[347607952,1735947039620,-500.0,0.00011899,2]
[347607953,1735947039630,-500.0,0.00011899,2]
[347607954,1735947039640,-500.0,0.00011899,2]
[347607955,1735947039649,-500.0,0.00011899,2]
[347607956,1735947039658,-553.93,0.00011899,2]
[347607957,1735947039668,-262.55136224,0.00011899,2]
[347607958,1735947039700,-237.44863776,0.00011899,2]
[347607959,1735947039710,-500.0,0.00011899,2]
[347607960,1735947039720,-500.0,0.00011899,2]
[347607962,1735947039730,-500.0,0.00011899,2]
[347607964,1735947039739,-500.0,0.00011899,2]
[347607965,1735947039749,-564.9,0.00011899,2]
[347607967,1735947039759,-413.90081675,0.00011899,2]
[347607970,1735947039770,-86.09918325,0.00011899,2]
[347607972,1735947039779,-500.0,0.00011899,2]
[347607974,1735947039789,-500.0,0.00011899,2]
[347607976,1735947039799,-500.0,0.00011899,2]
[347607978,1735947039808,-500.0,0.00011899,2]
[347607980,1735947039817,-500.0,0.00011899,2]
[347607982,1735947039826,-500.0,0.00011899,2]
[347607984,1735947039836,-500.0,0.00011899,2]
[347607985,1735947039845,-500.0,0.00011899,2]
[347607987,1735947039855,-500.0,0.00011899,2]
[347607989,1735947039864,-500.0,0.00011899,2]
[347607991,1735947039874,-266.948624,0.00011899,2]
[347608030,1735947040223,-289.90052373,0.00011798,2]
[347608032,1735947040235,-210.09947627,0.00011798,2]
[347608034,1735947040245,-233.051376,0.00011899,2]
[347608036,1735947040255,-500.0,0.00011899,2]
[347608038,1735947040264,-500.0,0.00011899,2]
[347608040,1735947040273,-763.36,0.00011899,2]
[347608042,1735947040283,-500.0,0.00011899,2]
[347608044,1735947040292,-500.0,0.00011899,2]
[347608046,1735947040301,-602.88,0.00011899,2]
[347608048,1735947040311,-500.0,0.00011899,2]
[347608049,1735947040320,-500.0,0.00011899,2]
[347608050,1735947040329,-500.0,0.00011899,2]
[347608051,1735947040338,-500.0,0.00011899,2]
[347608052,1735947040348,-500.0,0.00011899,2]